bitfinex/quotes_SOLUSD_20260226
["timestamp","ask_amount","ask_price","bid_price","bid_amount"]
[1772148602859,0.49237843,86.12,86.101,0.46502216]
[1772148606760,0.49237843,86.12,86.102,11.61413207]
[1772148607866,0.49237843,86.12,86.102,0.46502216]
[1772148608760,0.49237843,86.129,86.111,0.46502216]
[1772148609453,0.49237843,86.129,86.106,0.46502216]
[1772148609764,0.49237843,86.129,86.101,0.46895748]
[1772148609966,0.48679712,86.127,86.096,12.0837736]
[1772148610264,0.48679712,86.109,86.073,29.04508408]
[1772148610569,0.48679712,86.109,86.075,0.46895748]
[1772148610864,0.48679712,86.109,86.075,12.08673267]
[1772148611842,0.48679712,86.107,86.075,12.08673267]
[1772148612457,0.48679712,86.099,86.075,11.61777519]
[1772148613139,0.48679712,86.099,86.071,11.61827643]
[1772148613639,0.48679712,86.099,86.07,0.2]
[1772148613853,0.48679712,86.089,86.07,0.2]
[1772148617472,0.48679712,86.087,86.06,0.2]
[1772148617771,0.48679712,86.079,86.06,0.2]
[1772148620373,0.48679712,86.099,86.062,0.46895748]
[1772148620680,0.48679712,86.098,86.062,0.46895748]
[1772148621467,40.65087863,86.099,86.06,0.2]
[1772148621468,0.48679712,86.089,86.06,0.2]
[1772148622258,0.48679712,86.079,86.06,0.2]
[1772148625379,0.48679712,86.078,86.06,0.2]
[1772148625875,0.48679712,86.078,86.06,0.66895748]
[1772148626279,0.48679712,86.078,86.06,0.2]
[1772148627380,11.61750525,86.077,86.06,0.2]
[1772148627574,0.48679712,86.076,86.06,0.2]
[1772148628768,0.48679712,86.076,86.05,0.2]
[1772148628972,11.61750525,86.077,86.04,0.2]
[1772148628973,0.48679712,86.059,86.04,0.2]
[1772148630484,0.48679712,86.057,86.04,0.2]
[1772148632486,0.48679712,86.055,86.04,0.2]
[1772148633665,0.48679712,86.071,86.042,0.46895748]
[1772148633864,0.48679712,86.071,86.041,11.62236608]
[1772148633865,0.48679712,86.076,86.051,0.46895748]
[1772148634167,0.48679712,86.083,86.051,0.46895748]
[1772148634691,0.48679712,86.081,86.051,0.46895748]
[1772148635180,3.73748794,86.08,86.051,0.46895748]
[1772148635489,0.48679712,86.079,86.051,0.46895748]
[1772148636582,11.61737029,86.078,86.051,0.46895748]
[1772148636787,0.48679712,86.077,86.051,0.46895748]
[1772148639291,0.48679712,86.077,86.053,0.4641792]
[1772148640092,0.49246926,86.075,86.053,0.4641792]
[1772148641789,0.49246926,86.075,86.055,0.4733931]
[1772148642294,0.49246926,86.073,86.055,0.4733931]
[1772148643993,0.49246926,86.071,86.051,0.4733931]
[1772148647586,0.49246926,86.071,86.053,0.4733931]
[1772148647786,12.11007788,86.077,86.053,0.4733931]
[1772148648204,0.49246926,86.076,86.053,0.4733931]
[1772148649703,0.49246926,86.076,86.055,0.4733931]
[1772148653590,0.49246926,86.076,86.057,0.4733931]
[1772148662909,0.49246926,86.076,86.058,0.4733931]
[1772148669612,0.49246926,86.075,86.053,0.4733931]
[1772148672418,0.46037378,86.09,86.055,0.47027303]
[1772148672793,46.43435851,86.144,86.061,0.47027303]
[1772148672998,0.46037378,86.098,86.071,0.47027303]
[1772148674423,0.46037378,86.096,86.071,0.47027303]
[1772148675603,0.46037378,86.096,86.073,0.47027303]
[1772148678825,0.46037378,86.109,86.075,0.47027303]
[1772148679023,0.46037378,86.108,86.081,0.47027303]
[1772148683911,0.46037378,86.119,86.082,0.47027303]
[1772148685725,0.46037378,86.115,86.084,0.47027303]
[1772148687025,0.46037378,86.115,86.091,0.47027303]
[1772148687423,0.46037378,86.13,86.101,0.47027303]
[1772148687617,12.07005625,86.135,86.111,0.47027303]
[1772148687810,0.46037378,86.134,86.111,0.47027303]
[1772148688827,0.46037378,86.134,86.092,0.47027303]
[1772148689125,0.46037378,86.107,86.08,0.47027303]
[1772148689511,0.46037378,86.107,86.076,11.61755923]
[1772148689712,0.46037378,86.107,86.076,12.08783226]
[1772148690026,0.46037378,86.107,86.077,0.47027303]
[1772148692436,0.46037378,86.105,86.072,0.47027303]
[1772148694935,0.46037378,86.103,86.074,0.47027303]
[1772148695246,0.46037378,86.099,86.066,0.28432314]
[1772148695416,0.46037378,86.099,86.067,0.47027303]
[1772148696022,0.46037378,86.089,86.062,0.47027303]
[1772148696223,0.46037378,86.089,86.056,0.47027303]
[1772148697136,0.4932861,86.087,86.056,0.47027303]
[1772148697323,0.4932861,86.079,86.051,0.49697219]
[1772148697519,0.4932861,86.079,86.048,12.11830608]
[1772148697813,0.4932861,86.079,86.049,0.49697219]
[1772148698541,0.4932861,86.077,86.051,0.49697219]
[1772148700521,0.47381038,86.088,86.053,0.45037796]
[1772148700723,0.47381038,86.086,86.053,0.45037796]
[1772148702950,0.47381038,86.084,86.053,0.45037796]
[1772148703446,0.47381038,86.079,86.048,12.07179615]
[1772148703635,0.47381038,86.079,86.049,0.45037796]
[1772148703834,0.47381038,86.079,86.044,0.45037796]
[1772148706449,0.47381038,86.085,86.051,0.45037796]
[1772148707947,58.06219432,86.115,86.046,5.8]
[1772148707948,0.47381038,86.079,86.046,5.8]
[1772148708927,0.47381038,86.079,86.046,6.25037796]
[1772148709125,0.47381038,86.079,86.047,0.45037796]
[1772148709957,0.47381038,86.077,86.047,0.45037796]
[1772148712351,0.47381038,86.075,86.047,0.45037796]
[1772148712844,0.47381038,86.08,86.051,0.45037796]
[1772148716654,0.47381038,86.085,86.053,0.45037796]
[1772148718850,0.47381038,86.085,86.054,11.62061031]
[1772148718851,11.61656056,86.084,86.054,11.62061031]
[1772148719156,0.47381038,86.083,86.055,0.45037796]
[1772148721761,0.47381038,86.081,86.055,0.45037796]
[1772148724061,0.47381038,86.079,86.055,0.45037796]
[1772148724261,0.47381038,86.079,86.044,5.8]
[1772148724459,0.47381038,86.069,86.04,0.2]
[1772148725250,0.47381038,86.067,86.04,0.2]
[1772148725765,0.47381038,86.059,86.04,0.2]
[1772148726461,0.47381038,86.057,86.04,0.2]
[1772148727063,0.47381038,86.057,86.03,0.2]
[1772148729584,3.73348654,86.05,86.03,0.2]
[1772148729873,0.46297789,86.049,86.02,0.2]
[1772148730175,0.46297789,86.039,86.011,11.62629995]
[1772148730761,0.46297789,86.039,86.012,0.4593218]
[1772148731866,0.46297789,86.037,86.012,0.4593218]
[1772148732172,0.46297789,86.041,86.012,0.4593218]
[1772148732867,0.46297789,86.039,86.012,0.4593218]
[1772148735475,0.46297789,86.029,86.01,1e-08]
[1772148735657,0.46297789,86.019,86.01,1e-08]
[1772148736257,0.46297789,86.024,86.01,1e-08]
[1772148738086,0.46297789,86.028,86.01,0.45932181]
[1772148740478,0.46297789,86.026,86.01,1e-08]
[1772148745404,46.47964703,86.06,86.01,1e-08]
[1772148745405,0.46297789,86.064,86.01,1e-08]
[1772148745588,0.46297789,86.064,86.021,0.4593218]
[1772148745589,0.46297789,86.059,86.021,0.4593218]
[1772148746705,0.46297789,86.057,86.021,0.4593218]
[1772148747921,0.46297789,86.057,86.023,0.4593218]
[1772148748898,0.46297789,86.057,86.01,29.06638284]
[1772148748899,11.61885507,86.067,86.041,0.4593218]
[1772148750498,12.08115801,86.072,86.041,0.4593218]
[1772148751191,0.46297789,86.071,86.041,0.4593218]
[1772148752017,11.61818012,86.072,86.041,0.4593218]
[1772148755118,0.46297789,86.076,86.041,0.4593218]
[1772148758616,0.49741177,86.074,86.041,0.4593218]
[1772148758816,0.49741177,86.069,86.041,0.4593218]
[1772148760594,11.61872008,86.068,86.041,0.4593218]
[1772148761518,0.49977997,86.067,86.041,0.4593218]
[1772148762026,11.61872008,86.068,86.041,0.4593218]
[1772148762724,29.04443799,86.075,86.041,0.4593218]
[1772148763020,0.49977997,86.074,86.041,0.4593218]
[1772148765124,0.49977997,86.069,86.041,0.4593218]
[1772148768327,11.61872008,86.068,86.041,0.4593218]
[1772148768527,58.07563305,86.095,71.703,0.5]
[1772148768528,11.61656056,86.084,86.051,0.48671398]
[1772148769006,12.11634053,86.084,86.051,0.48671398]
[1772148771427,0.49977997,86.09,86.053,0.48671398]
[1772148771611,11.61607733,86.088,86.061,0.48671398]
[1772148772228,11.61413207,86.102,86.071,0.48671398]
[1772148773412,11.61318793,86.109,86.073,0.48671398]
[1772148773611,11.61318793,86.109,86.081,0.48671398]
[1772148773812,12.1129679,86.109,86.081,0.48671398]
[1772148774017,0.49977997,86.108,86.076,0.48671398]
[1772148775426,3.73974132,86.11,86.076,0.48671398]
[1772148775427,0.49977997,86.106,86.076,0.48671398]
[1772148776635,0.49977997,86.104,86.076,0.48671398]
[1772148778530,0.49977997,86.102,86.076,0.48671398]
[1772148782018,0.49977997,86.1,86.076,0.48671398]
[1772148783735,0.49977997,86.098,86.067,0.48671398]
[1772148784527,0.49977997,86.089,86.06,0.48671398]
[1772148785339,0.49977997,86.079,86.041,0.48671398]
[1772148785743,1.84325409,86.08,86.042,0.48671398]
[1772148786542,3.73974132,86.07,86.042,0.48671398]
[1772148787637,0.1999104,86.069,86.042,0.48671398]
[1772148788051,0.1999104,86.074,86.042,0.48671398]
[1772148788348,0.1999104,86.078,86.042,0.48671398]
[1772148788541,0.1999104,86.076,86.042,0.48671398]
[1772148788935,0.1999104,86.076,86.043,0.48671398]
[1772148790245,11.61777519,86.075,86.043,0.48671398]
[1772148790841,11.81768559,86.075,86.043,0.48671398]
[1772148791851,11.81768559,86.075,86.045,0.45874082]
[1772148792851,29.04376314,86.077,86.047,0.45874082]
[1772148793038,29.24367354,86.077,86.047,0.45874082]
[1772148793444,0.1999104,86.076,86.047,0.45874082]
[1772148795248,0.1999104,86.074,86.047,0.45874082]
[1772148797556,0.1999104,86.069,86.047,0.45874082]
[1772148798441,0.1999104,86.067,86.047,0.45874082]
[1772148800556,3.73974132,86.06,86.031,0.45874082]
[1772148800953,0.1999104,86.064,86.031,0.45874082]
[1772148801140,11.61899007,86.066,86.031,0.45874082]
[1772148801937,3.73974132,86.07,86.018,5.8]
[1772148801938,11.61846381,86.07,86.041,0.45874082]
[1772148802141,29.04107388,86.085,86.051,0.45874082]
[1772148802364,11.61656056,86.084,86.051,0.45874082]
[1772148802556,11.61656056,86.084,86.053,0.45874082]
[1772148803661,0.2034787,86.083,86.053,0.45874082]
[1772148804561,11.61683046,86.082,86.053,0.45874082]
[1772148804767,11.82312395,86.082,86.053,0.45874082]
[1772148806760,0.21454539,86.081,86.053,0.45874082]
[1772148807857,11.61710037,86.08,86.053,0.45874082]
[1772148810466,11.61710037,86.08,86.055,0.45874082]
[1772148810763,29.03804425,86.094,86.062,0.45874082]
[1772148811165,0.22511233,86.116,86.081,0.45874082]
[1772148811375,0.22511233,86.116,86.082,0.45874082]
[1772148812449,0.22767865,86.115,86.082,0.45874082]
[1772148814649,40.641438,86.119,86.082,0.45874082]
[1772148814945,40.641438,86.119,86.084,0.45874082]
[1772148815666,40.87664008,86.119,86.091,0.45874082]
[1772148816663,0.24007479,86.118,86.091,0.45874082]
[1772148819571,40.64238186,86.117,86.091,0.45874082]
[1772148819867,0.24948886,86.116,86.091,0.45874082]
[1772148820370,3.73726412,86.1,86.073,0.51713217]
[1772148820667,0.25177519,86.099,86.073,0.51713217]
[1772148821166,0.25177519,86.099,86.06,3.73726412]
[1772148821654,0.25177519,86.099,86.056,0.28432314]
[1772148821951,0.51913551,86.097,86.056,11.90466338]
[1772148822367,0.51913551,86.089,86.055,5.8]
[1772148822663,40.65135078,86.098,86.041,11.62229482]
[1772148822664,0.51913551,86.079,86.041,11.62229482]
[1772148823368,0.51913551,86.079,86.042,0.51713217]
[1772148825878,0.51913551,86.077,86.044,0.51713217]
[1772148826780,11.61737029,86.078,86.051,0.51713217]
[1772148827279,0.51913551,86.087,86.061,0.51713217]
[1772148828670,12.13539609,86.087,86.061,0.51713217]
[1772148829382,11.61626058,86.087,86.062,0.51713217]
[1772148829583,0.51913551,86.105,86.071,0.51713217]
[1772148829872,0.51913551,86.103,86.071,0.51713217]
[1772148830180,0.51913551,86.099,86.071,0.51713217]
[1772148830683,0.51913551,86.097,86.071,0.51713217]
[1772148831683,0.51913551,86.095,86.071,0.51713217]
[1772148834181,11.61521128,86.094,86.071,0.51713217]
[1772148834364,12.13434679,86.094,86.071,0.51713217]
[1772148834687,0.51913551,86.093,86.071,0.51713217]
[1772148835491,0.51913551,86.099,86.071,0.51713217]
[1772148839291,11.61467165,86.098,86.073,0.51713217]
[1772148839991,11.61318793,86.109,86.081,0.51713217]
[1772148841289,11.61183943,86.119,86.091,0.51713217]
[1772148841478,0.51913551,86.122,86.091,0.51713217]
[1772148843497,0.51913551,86.12,86.091,0.51713217]
[1772148845897,0.51913551,86.118,86.091,0.51713217]
[1772148847798,0.51913551,86.118,86.092,0.51713217]
[1772148847977,11.6121091,86.117,86.094,0.51713217]
[1772148848792,11.6121091,86.117,86.1,3.73726412]
[1772148849000,11.61076085,86.127,86.101,0.51713217]
[1772148849495,0.51913551,86.126,86.101,0.51713217]
[1772148850098,0.48982564,86.124,86.101,0.51713217]
[1772148851695,11.61130011,86.123,86.101,0.51713217]
[1772148851899,0.48982564,86.122,86.101,0.51713217]
[1772148852795,0.48982564,86.122,86.096,0.48528949]
[1772148853898,3.73726412,86.11,86.096,0.48528949]
[1772148855997,11.61318793,86.109,86.096,0.48528949]
[1772148865589,3.73726412,86.12,86.096,0.48528949]
[1772148865994,3.73726412,86.12,86.097,0.48528949]
[1772148866195,0.48982564,86.123,86.097,0.48528949]
[1772148866398,3.73726412,86.12,86.097,0.48528949]
[1772148867403,29.02258919,86.14,86.089,29.03946432]
[1772148867404,11.61062825,86.128,86.099,0.48528949]
[1772148869304,11.61062825,86.128,86.1,11.61440185]
[1772148869606,11.61062825,86.128,86.101,0.48528949]
[1772148870807,12.10045389,86.128,86.101,0.48528949]
[1772148872217,3.73335141,86.12,86.101,0.48528949]
[1772148872394,0.48982564,86.109,86.08,0.48528949]
[1772148872602,3.73335141,86.09,86.08,0.48528949]
[1772148873099,0.48982564,86.099,86.08,0.48528949]
[1772148874223,3.73335141,86.1,86.052,5.8]
[1772148874224,3.73335141,86.1,86.082,0.48528949]
[1772148878621,0.49661604,86.113,86.084,0.47233531]
[1772148879020,29.52640223,86.119,86.084,0.47233531]
[1772148879525,11.61249653,86.115,86.084,0.47233531]
[1772148881423,11.61249653,86.115,86.086,0.47984551]
[1772148883923,11.61249653,86.115,86.087,11.61615574]
[1772148884111,12.10850959,86.119,86.088,0.47984551]
[1772148885225,0.51116569,86.118,86.09,0.47984551]
[1772148885815,0.51116569,86.109,86.084,0.47984551]
[1772148886009,0.51116569,86.109,86.079,0.47984551]
[1772148886415,0.51116569,86.109,86.08,0.47984551]
[1772148887933,0.51116569,86.107,86.082,0.47984551]
[1772148893333,0.51116569,86.105,86.084,0.47984551]
[1772148897130,0.51116569,86.105,86.086,0.47984551]
[1772148897840,0.51116569,86.11,86.088,0.47984551]
[1772148898839,0.51116569,86.118,86.088,0.47984551]
[1772148899736,0.51116569,86.13,86.098,0.47984551]
[1772148899937,0.51116569,86.13,86.09,3.73335141]
[1772148899938,0.51116569,86.14,86.108,0.47984551]
[1772148900135,0.51116569,86.145,86.108,0.47984551]
[1772148900438,0.51116569,86.156,86.121,0.47984551]
[1772148902040,0.51116569,86.154,86.123,0.47984551]
[1772148902430,0.51116569,86.139,86.114,0.28432314]
[1772148902630,0.51116569,86.129,86.103,0.47984551]
[1772148903034,4.2445171,86.12,86.103,0.47984551]
[1772148903346,0.51116569,86.12,86.103,0.47984551]
[1772148904245,0.51116569,86.125,86.105,0.47984551]
[1772148905343,0.51116569,86.134,86.105,0.47984551]
[1772148905550,11.60940493,86.138,86.105,0.47984551]
[1772148905737,0.51116569,86.137,86.105,0.47984551]
[1772148907142,0.51116569,86.135,86.105,0.47984551]
[1772148907947,0.51116569,86.129,86.105,0.47984551]
[1772148908447,0.51116569,86.129,86.104,11.6138623]
[1772148908448,0.51116569,86.119,86.099,11.6144467]
[1772148908647,0.51116569,86.119,86.095,0.28432314]
[1772148908844,0.51116569,86.119,86.097,0.28432314]
[1772148909042,0.51116569,86.119,86.097,0.76416865]
[1772148909238,0.51116569,86.118,86.094,11.61518742]
[1772148910353,3.73335141,86.1,86.092,5.8]
[1772148910557,3.73335141,86.1,86.082,0.47656818]
[1772148910860,0.49310275,86.105,86.083,0.47656818]
[1772148911350,40.64238186,86.117,86.077,0.47656818]
[1772148911351,3.73335141,86.1,86.077,0.47656818]
[1772148911548,0.49310275,86.099,86.077,0.47656818]
[1772148911941,0.49310275,86.099,86.079,0.47656818]
[1772148913556,0.49310275,86.089,86.066,0.28432314]
[1772148914056,0.49310275,86.089,86.067,0.28432314]
[1772148914745,0.49310275,86.089,86.068,11.61872008]
[1772148916647,0.49310275,86.089,86.069,0.47656818]
[1772148917559,0.49310275,86.089,86.07,11.61845009]
[1772148917748,0.49310275,86.089,86.07,12.09501827]
[1772148917954,0.49310275,86.089,86.071,0.47656818]
[1772148918365,0.49310275,86.089,86.067,0.28432314]
[1772148918366,0.49310275,86.089,86.065,0.47656818]
[1772148918661,0.49310275,86.089,86.059,0.47656818]
[1772148919545,0.49310275,86.089,86.061,0.47656818]
[1772148922066,0.49310275,86.087,86.062,12.09609828]
[1772148922266,0.49310275,86.087,86.063,0.47656818]
[1772148924066,0.49310275,86.085,86.063,0.47656818]
[1772148925864,0.49310275,86.079,86.051,11.62101544]
[1772148926065,0.49310275,86.079,86.044,0.28432314]
[1772148926253,0.49310275,86.079,86.047,0.47656818]
[1772148926454,12.10966331,86.084,86.047,0.47656818]
[1772148926654,0.49310275,86.083,86.047,0.47656818]
[1772148927870,0.49310275,86.079,86.049,0.47656818]
[1772148929269,0.49310275,86.079,86.051,0.47656818]
[1772148930265,0.49310275,86.089,86.054,0.14216157]
[1772148930473,0.49310275,86.089,86.057,0.47656818]
[1772148930673,0.49310275,86.094,86.068,0.47656818]
[1772148931553,0.49310275,86.094,86.069,11.61858508]
[1772148932276,0.49310275,86.094,86.065,0.28432314]
[1772148932572,0.49310275,86.094,86.064,11.61913159]
[1772148932573,0.49310275,86.089,86.064,11.61913159]
[1772148934077,0.49310275,86.088,86.064,0.47656818]
[1772148935162,0.49310275,86.086,86.057,0.47656818]
[1772148937775,0.49310275,86.086,86.059,0.50622752]
[1772148939280,0.49310275,86.086,86.061,0.50622752]
[1772148939487,0.46334908,86.084,86.042,6.30622752]
[1772148939775,0.46334908,86.079,86.043,0.50622752]
[1772148940077,0.46334908,86.079,86.051,0.45965568]
[1772148940254,0.49834131,86.089,86.053,0.45965568]
[1772148940572,0.49834131,86.1,86.077,0.45965568]
[1772148940774,0.49834131,86.111,86.077,0.45965568]
[1772148941654,0.49834131,86.109,86.078,11.61737029]
[1772148942188,0.49834131,86.109,86.08,3.73722013]
[1772148942487,3.73722013,86.15,86.101,0.45965568]
[1772148942664,3.73722013,86.14,86.101,0.45965568]
[1772148943184,3.73722013,86.13,86.096,0.28432314]
[1772148943558,11.61049123,86.129,86.097,11.61480655]
[1772148943766,11.61049123,86.129,86.097,12.07446223]
[1772148943958,3.73722013,86.12,86.089,0.45965568]
[1772148944471,0.23422739,86.119,86.089,0.45965568]
[1772148945481,0.23422739,86.119,86.09,11.61575095]
[1772148945783,0.23387277,86.117,86.09,0.45965568]
[1772148947995,0.23352625,86.115,86.09,0.45965568]
[1772148948793,0.23352625,86.115,86.092,0.45965568]
[1772148951180,0.23302126,86.127,86.094,0.45965568]
[1772148951382,0.23302126,86.119,86.088,0.45965568]
[1772148954273,0.23253347,86.117,86.088,0.45965568]
[1772148954468,11.61197426,86.118,86.077,0.45965568]
[1772148954469,0.23253347,86.109,86.077,0.45965568]
[1772148955591,0.23237459,86.117,86.081,0.45965568]
[1772148956576,0.23237459,86.117,86.083,0.45965568]
[1772148956964,11.61224395,86.116,86.083,0.45965568]
[1772148957166,11.84430624,86.116,86.083,0.45965568]
[1772148957989,11.61224395,86.116,86.083,0.45965568]
[1772148958288,0.23190883,86.115,86.083,0.45965568]
[1772148960789,0.23190883,86.115,86.085,0.45965568]
[1772148961976,0.2313124,86.113,86.085,0.45965568]
[1772148962382,0.2313124,86.109,86.085,0.45965568]
[1772148962589,0.2313124,86.099,86.068,0.45965568]
[1772148962975,0.23116754,86.097,86.069,11.61858508]
[1772148963176,0.23116754,86.097,86.069,12.07824076]
[1772148964971,0.23116754,86.097,86.07,0.45965568]
[1772148965176,0.23088281,86.095,86.07,0.45965568]
[1772148966293,0.23088281,86.095,86.062,0.45965568]
[1772148967191,0.23060459,86.089,86.057,12.07981014]
[1772148968093,0.23060459,86.089,86.057,11.62015446]
[1772148968292,0.23046787,86.079,86.051,0.45965568]
[1772148969196,0.23046787,86.079,86.053,0.45965568]
[1772148969586,11.61737029,86.078,86.053,0.45965568]
[1772148969901,0.23006705,86.077,86.053,0.45965568]
[1772148971487,0.2299365,86.075,86.048,0.46796412]
[1772148971687,0.2299365,86.069,86.043,0.46796412]
[1772148972199,0.2299365,86.069,86.041,11.62236608]
[1772148972901,0.2299365,86.069,86.041,12.0903302]
[1772148973502,0.22967989,86.067,86.042,0.46796412]
[1772148974790,0.22967989,86.067,86.033,0.46796412]
[1772148975582,0.22967989,86.067,86.034,11.62331171]
[1772148975785,0.22967989,86.067,86.035,0.46796412]
[1772148975990,0.22930592,86.065,86.035,0.46796412]
[1772148978107,0.22906371,86.063,86.035,0.46796412]
[1772148978489,0.22906371,86.059,86.029,0.46796412]
[1772148979812,0.22906371,86.059,86.028,3.69383402]
[1772148979994,0.22882703,86.049,86.021,11.62498289]
[1772148980189,0.22882703,86.047,86.021,11.62498289]
[1772148980689,0.22882703,86.047,86.022,0.46796412]
[1772148983002,0.22882703,86.047,86.023,11.62479801]
[1772148983195,0.22882703,86.047,86.024,0.46796412]
[1772148984804,0.22825871,86.045,86.024,0.46796412]
[1772148985014,0.22825871,86.045,86.018,0.46796412]
[1772148986008,0.22814894,86.039,86.018,0.46796412]
[1772148986211,0.22814894,86.039,86.013,12.09403381]
[1772148986410,0.22814894,86.039,86.013,0.46796412]
[1772148987001,3.73722013,86.03,86.01,1e-08]
[1772148987300,0.22804042,86.029,86.01,1e-08]
[1772148987610,0.22804042,86.029,86.011,0.46796412]
[1772148988222,0.22804042,86.029,86.012,12.09424882]
[1772148989116,0.22804042,86.029,86.01,1e-08]
[1772148989328,0.22782711,86.027,86.01,1e-08]
[1772148990720,0.22782711,86.027,86.0,0.2]
[1772148990721,0.22772229,86.019,86.0,0.2]
[1772148990900,0.02761868,86.009,85.99,0.2]
[1772148992721,0.02751625,86.039,86.001,0.49064937]
[1772148997053,0.02692594,86.038,86.003,0.49899152]
[1772149000805,0.02692594,86.038,86.005,0.49064937]
[1772149002926,0.02628701,86.029,86.007,0.49064937]
[1772149003227,0.02628701,86.029,86.002,0.49064937]
[1772149004509,0.02619988,86.034,86.002,0.49064937]
[1772149005113,3.74316556,86.03,86.003,11.62750136]
[1772149005319,0.02611376,86.029,86.004,0.49064937]
[1772149009934,0.02611376,86.029,86.006,0.49064937]
[1772149011724,0.02561736,86.028,86.006,0.49064937]
[1772149015337,3.74316556,86.02,86.0,0.49064937]
[1772149015926,0.02530504,86.023,86.0,0.49064937]
[1772149020224,0.02530504,86.023,86.001,11.62777177]
[1772149020429,3.74316556,86.04,86.002,0.49064937]
[1772149020629,0.0249344,86.038,86.002,0.49064937]
[1772149020937,0.0249344,86.038,86.004,0.49064937]
[1772149021259,0.0249344,86.038,86.003,11.62750136]
[1772149021260,0.02486281,86.049,86.011,0.49064937]
[1772149021558,2.55250781,86.04,86.012,0.49064937]
[1772149021733,2.57737062,86.04,86.012,0.49064937]
[1772149022143,0.02479203,86.039,86.012,0.49064937]
[1772149023447,2.55250781,86.04,86.014,0.49064937]
[1772149023827,11.62242496,86.041,86.014,0.49064937]
[1772149024446,0.02472208,86.044,86.014,0.49064937]
[1772149025845,3.74316556,86.05,86.016,0.49064937]
[1772149026057,0.02451698,86.049,86.016,0.49064937]
[1772149030150,0.02419057,86.039,86.018,0.49064937]
[1772149032645,0.0240652,86.069,86.031,0.49064937]
[1772149034050,0.0240652,86.069,86.03,3.74316556]
[1772149034051,0.0240652,86.069,86.041,0.49064937]
[1772149036355,0.02382297,86.068,86.041,0.49064937]
[1772149041760,0.02353551,86.072,86.043,0.49064937]
[1772149047175,0.02353551,86.072,86.05,3.74316556]
[1772149047468,0.02353551,86.072,86.051,0.49064937]
[1772149049667,0.02310875,86.078,86.051,0.49064937]
[1772149053754,0.02290972,86.079,86.041,0.49064937]
[1772149054780,0.02286138,86.069,86.041,0.49064937]
[1772149054974,0.02286138,86.069,86.036,0.49064937]
[1772149056749,0.02276636,86.059,86.02,11.62510208]
[1772149056950,0.02276636,86.059,86.021,0.49064937]
[1772149058472,0.02262789,86.064,86.031,0.49465835]
[1772149060181,0.02262789,86.064,86.033,0.49064937]
[1772149062080,0.02240751,86.059,86.028,0.49064937]
[1772149065182,0.02228126,86.049,86.0,3.73755479]
[1772149065478,0.02228126,86.029,86.001,0.49064937]
[1772149065680,0.02228126,86.039,86.001,0.49064937]
[1772149065867,0.02228126,86.044,86.011,0.49064937]
[1772149067087,0.02219949,86.054,86.011,0.49064937]
[1772149067463,0.02219949,86.054,86.021,0.49064937]
[1772149076776,11.64175299,86.059,86.023,0.49064937]
[1772149077068,11.61993516,86.059,86.031,0.49064937]
[1772149078579,0.02178203,86.068,86.033,0.49064937]
[1772149081280,0.02178203,86.068,86.035,0.49064937]
[1772149081597,11.61858508,86.069,86.041,0.49064937]
[1772149082592,11.11711426,86.069,86.051,0.49064937]
[1772149082784,0.47889053,86.089,86.061,0.46055787]
[1772149082984,0.47889053,86.079,86.051,0.46055787]
[1772149083178,0.47889053,86.077,86.051,0.46055787]
[1772149083876,0.47889053,86.069,86.03,3.73755479]
[1772149085799,0.47889053,86.067,86.033,0.46055787]
[1772149087980,11.61872008,86.068,86.03,3.73755479]
[1772149087981,0.47889053,86.065,86.035,0.46055787]
[1772149089294,0.47889053,86.065,86.041,0.46055787]
[1772149090506,0.47889053,86.065,86.042,0.48314201]
[1772149091310,11.61926008,86.064,86.042,0.48314201]
[1772149091493,0.4714404,86.063,86.042,0.48314201]
[1772149093809,0.4714404,86.061,86.042,0.48314201]
[1772149095408,0.4714404,86.061,86.042,12.10525782]
[1772149095609,0.4714404,86.061,86.043,0.48314201]
[1772149098008,0.4714404,86.059,86.023,0.48314201]
[1772149099514,0.4714404,86.057,86.025,0.48314201]
[1772149101699,0.4714404,86.055,86.031,0.48314201]
[1772149102190,0.4714404,86.06,86.031,0.48314201]
[1772149102398,0.4714404,86.06,86.041,0.48314201]
[1772149102598,3.73755479,86.08,86.051,0.48314201]
[1772149102599,0.4714404,86.076,86.051,0.48314201]
[1772149104318,11.61777519,86.075,86.051,0.48314201]
[1772149104497,0.4714404,86.074,86.051,0.48314201]
[1772149107315,0.4714404,86.074,86.052,0.48314201]
[1772149107620,11.61803584,86.074,86.052,0.48314201]
[1772149107916,0.4714404,86.078,86.053,0.48314201]
[1772149109221,0.4714404,86.084,86.061,0.48314201]
[1772149109917,11.61669551,86.083,86.061,0.48314201]
[1772149117823,0.45455372,86.083,86.061,0.48314201]
[1772149123613,0.49514611,86.082,86.061,0.48314201]
[1772149125632,0.49514611,86.103,86.071,0.47381443]
[1772149126314,0.49514611,86.103,86.081,0.47381443]
[1772149127316,0.2,86.12,86.091,0.47381443]
[1772149127523,0.2,86.13,86.112,0.47381443]
[1772149128737,0.2,86.13,86.121,0.47381443]
[1772149129739,0.2,86.13,86.116,0.47381443]
[1772149130338,11.8104775,86.13,86.116,0.47381443]
[1772149130639,0.49514611,86.129,86.116,0.47381443]
[1772149130849,0.49514611,86.129,86.111,0.47381443]